fUSD/lending_fUSD_20240119
["ID","MTS","AMOUNT","RATE_DAILY","PERIOD"]
[312111759,1705637438349,-4774.3556,0.00021718,2]
[312111760,1705637438360,-349.11544888,0.00021792,2]
[312111761,1705637438369,-155.46,0.00021802,2]
[312111762,1705637438378,-1000.0,0.00021818,2]
[312111763,1705637438387,-4505.5075,0.00021818,2]
[312111764,1705637438397,-156.51,0.00021848,2]
[312111765,1705637438406,-11814.4499999,0.00021888,2]
[312111766,1705637438415,-11814.4499999,0.00021888,2]
[312111767,1705637438425,-1243.1598403,0.00021888,2]
[312111768,1705637438434,-6081.295829,0.00021888,2]
[312111769,1705637438444,-2166.3592064,0.00021888,2]
[312111770,1705637438453,-400.16,0.00021888,2]
[312111771,1705637438462,-1074.85021641,0.0002189,2]
[312111772,1705637438472,-205.62235758,0.0002189,2]
[312111773,1705637438481,-12957.45750122,0.0002189,2]
[312111774,1705637438490,-2503.63234102,0.0002189,2]
[312111775,1705637438499,-3165.60902583,0.00021891,2]
[312111776,1705637438509,-500.0,0.00021891,2]
[312111777,1705637438519,-27553.33505503,0.00021892,2]
[312111778,1705637438536,-275.43884083,0.00021892,2]
[312111779,1705637438648,-2086.42365342,0.00021892,2]
[312111797,1705637440921,-1311.37307315,0.00021892,2]
[312111798,1705637440933,-7475.30702003,0.00021892,2]
[312111934,1705637443378,-577.3364345,0.00021792,3]
[312111935,1705637443446,-391.76803539,0.00021792,3]
[312111936,1705637443458,-1961.19135793,0.00021892,3]
[312111937,1705637443469,-3090.36040601,0.00021892,2]
[312111942,1705637446245,-4600.08261182,0.00021892,2]
[312111943,1705637446301,-4675.11,0.00021892,2]
[312111944,1705637446364,-1102.74167354,0.00021892,2]
[312111945,1705637446421,-1777.75,0.00021892,2]
[312111946,1705637446435,-455.8499999,0.00021892,2]
[312111947,1705637451974,160.58,0.00021125,2]
[312111948,1705637531700,150.0,0.00021431,2]
[312111949,1705637644759,201.0,0.00021353,2]
[312111951,1705637665201,34130.0,0.000215,2]
[312111952,1705637703866,205.0,0.00021353,2]
[312111953,1705637716798,373.09,0.00020917,2]
[312111954,1705637734083,213.11,0.00018995,2]
[312111955,1705637734585,213.11,0.00021259,2]
[312111956,1705637835216,158.6,0.00021118,2]
[312111958,1705637917008,557.66,0.00020828,2]
[312111960,1705637961404,159.38,0.00020907,2]
[312111961,1705637961794,159.38,0.00021255,2]
[312111962,1705637990223,1703.26,0.00020828,2]
[312111963,1705638243269,373.0,0.0002089,2]
[312111964,1705638288174,156.51,0.00021086,2]
[312111965,1705638339103,553.87,0.00020872,2]
[312111966,1705638364108,201.0,0.00021501,2]
[312111967,1705638365451,203.73,0.00018952,2]
[312111968,1705638365759,203.73,0.00021216,2]
[312111969,1705638388043,174.08,0.0002087,2]
[312111970,1705638423756,205.0,0.00021501,2]
[312111974,1705638544229,150.0,0.00020807,2]
[312111979,1705638579774,2503.63234102,0.00021599,2]
[312111980,1705638581262,161.4886656,0.00021552,2]
[312111999,1705638632349,-671.04925394,0.000216,2]
[312112005,1705638632408,-310.0,0.000216,2]
[312112006,1705638632420,-18.95074606,0.000216,2]
[312112007,1705638632431,-159.38,0.00021604,2]
[312112008,1705638632441,-182.58,0.00021644,2]
[312112009,1705638632450,-174.08,0.00021652,2]
[312112010,1705638632459,-499.3562659,0.00021671,2]
[312112011,1705638632469,-300.0,0.00021686,2]
[312112012,1705638632478,-4651.92071172,0.00021687,2]
[312112013,1705638632494,-3084.30968848,0.00021687,2]
[312112014,1705638632571,-1012.23348766,0.00021687,2]
[312112015,1705638633234,-366.91487999,0.00021687,2]
[312112075,1705638638403,-13499.08550221,0.00021687,2]
[312112076,1705638638413,-6862.7523,0.0002169,2]
[312112077,1705638638423,-3808.0546,0.0002169,2]
[312112078,1705638638432,-1000.0,0.000217,2]
[312112079,1705638638442,-500.0,0.00021716,2]
[312112080,1705638638451,-200.0,0.00021716,2]
[312112081,1705638638462,-500.0,0.00021716,2]
[312112082,1705638638471,-200.0,0.00021716,2]
[312112083,1705638638481,-2503.63234102,0.00021788,2]
[312112084,1705638638494,-998.4425,0.00021789,2]
[312112085,1705638638503,-4111.12482773,0.0002179,2]
[312112086,1705638638539,-83991.03380566,0.0002179,2]
[312112087,1705638638548,-1756.769,0.00021792,2]
[312112088,1705638638558,-725.21,0.00021798,2]
[312112089,1705638638567,-161.4886656,0.00021821,2]
[312112090,1705638638577,-373.0,0.00021869,2]
[312112091,1705638638586,-1663.31484884,0.00021888,3]
[312112092,1705638638596,-709.59,0.00021888,2]
[312112093,1705638638605,-3393.22551158,0.00021888,2]
[312112094,1705638638649,-997.07270207,0.00021888,2]
[312112438,1705638641666,-150.0,0.00021631,2]
[312112440,1705638641677,-150.0,0.00021778,2]
[312112442,1705638641687,-150.0,0.00021806,2]
[312112444,1705638641697,-150.0,0.00021838,2]
[312112447,1705638641708,-5044.54678625,0.00021888,2]
[312112449,1705638641719,-3361.25321375,0.00021888,2]
[312112452,1705638641755,-369.24947386,0.00021888,2]
[312112455,1705638641768,-380.01146813,0.00021888,2]
[312112457,1705638641781,-747.71693966,0.00021888,2]
[312112572,1705638643409,-2628.60870002,0.00021888,2]
[312112574,1705638643421,-2642.56817368,0.00021888,2]
[312112575,1705638643431,-1970.17659148,0.00021888,2]
[312112577,1705638643572,-762.97849682,0.00021888,2]
[312112578,1705638643582,-11776.9923333,0.00021888,2]
[312112579,1705638643591,-9706.3479873,0.00021888,2]
[312112580,1705638643601,-1414.6325735,0.00021888,2]
[312112581,1705638643611,-997.07270206,0.0002189,2]
[312112582,1705638643620,-150.0,0.0002189,2]
[312112583,1705638643630,-470.61226192,0.00021891,2]
[312112584,1705638643640,-2021.30841625,0.00021891,2]
[312112585,1705638643650,-500.0,0.00021891,2]
[312112586,1705638643661,-122523.31079804,0.00021892,2]
[312112806,1705638649091,-4156.37192921,0.00021887,2]
[312112807,1705638649100,-111.69262799,0.00021892,2]
[312112808,1705638652605,14615.10409749,0.0002157,2]
[312112809,1705638722048,371.58,0.00020807,2]
[312112810,1705638750413,151.40119,0.00021599,3]
[312112811,1705638750790,151.40119,0.00021599,3]
[312112812,1705638751367,151.40119,0.00021599,3]
[312112813,1705638752456,151.40119,0.00021599,3]
[312112814,1705638753052,151.40119,0.00021599,3]
[312112815,1705638753526,151.40119,0.00021599,3]
[312112816,1705638754027,151.40119,0.00021599,3]
[312112817,1705638754547,151.40119,0.00021599,3]
[312112818,1705638755174,151.40119,0.00021599,3]
[312112819,1705638755850,151.40119,0.00021599,3]
[312112820,1705638755909,500.0,0.00020274,7]
[312112821,1705638756077,500.0,0.00020857,7]
[312112822,1705638756644,151.40119,0.00021599,3]
[312112823,1705638756716,500.0,0.00021441,7]
[312112824,1705638756876,151.40119,0.00021599,3]
[312112825,1705638757398,151.40119,0.00021599,3]
[312112826,1705638757927,151.40119,0.00021599,3]
[312112827,1705638758562,151.40119,0.00021599,3]
[312112828,1705638759088,151.40119,0.00021599,3]
[312112829,1705638759702,151.40119,0.00021599,3]
[312112830,1705638794851,500.0,0.00020274,2]
[312112831,1705638795257,500.0,0.0002092,2]
[312112832,1705638795529,500.0,0.00021566,2]
[312112833,1705638809920,157.93,0.0002111,2]
[312112834,1705638817250,163.48,0.00020892,2]
[312112835,1705638817470,163.48,0.00021414,2]
[312112837,1705638837418,556.9,0.0002089,2]
[312112838,1705638858524,159.15,0.00020963,2]
[312112839,1705638869990,208.23,0.00018904,2]
[312112840,1705638870340,208.23,0.00021168,2]
[312112841,1705639026391,203.0,0.00019817,2]
[312112842,1705639031235,203.0,0.00017812,2]
[312112843,1705639062918,1452.3390751,0.0002,2]
[312112844,1705639082908,455.7192249,0.0002,2]
[312112845,1705639142920,1452.3390751,0.0002,2]
[312112846,1705639224953,1452.3390751,0.0002,2]
[312112847,1705639236947,369.68,0.00020822,2]
[312112848,1705639242727,154.48,0.00021054,2]
[312112849,1705639244780,153.95,0.00020846,2]
[312112850,1705639244961,503.3801498,0.0002,2]
[312112851,1705639245071,153.95,0.00021471,2]
[312112853,1705639269316,554.48,0.00020836,2]
[312112854,1705639314833,199.68,0.00018904,2]
[312112855,1705639315159,199.68,0.00021168,2]
[312112856,1705639362955,1452.3390751,0.0002,2]
[312112857,1705639383308,1452.3390751,0.0002,2]
[312112858,1705639396958,503.3801498,0.0002,2]
[312112859,1705639444425,201.0,0.00020765,2]
[312112861,1705639473955,204.0,0.00020765,2]
[312112862,1705639500981,878.5619,0.0002,2]
[312112863,1705639536249,500.0,0.00020274,2]
[312112864,1705639536571,500.0,0.00020997,2]
[312112865,1705639671823,366.38,0.0002082,2]
[312112866,1705639701442,556.41,0.00020824,2]
[312112875,1705639757790,214.19,0.00020819,2]
[312112876,1705639769444,174.27188597,0.00021599,2]
[312112877,1705639774040,2503.63234102,0.00021599,2]
[312112878,1705639791042,191.37,0.00018917,2]
[312112879,1705639791364,191.37,0.00021181,2]
[312112880,1705639828083,155.82472085,0.00019063,2]
[312112886,1705639831490,-1028.0,0.000216,2]
[312112887,1705639831500,-159.68066405,0.00021616,2]
[312112888,1705639831509,-182.58,0.00021644,2]
[312112889,1705639831518,-94.18780747,0.00021699,2]
[312112890,1705639831532,-55.81219253,0.00021699,2]
[312112891,1705639831541,-244.18780747,0.00021716,2]
[312112892,1705639831557,-255.81219253,0.00021716,2]
[312112893,1705639831566,-200.0,0.00021716,2]
[312112894,1705639831576,-5.76432992,0.00021716,2]
[312112895,1705639831600,-194.23567008,0.00021716,2]
[312112896,1705639831609,-72.33332992,0.00021716,2]
[312112897,1705639831657,-127.66667008,0.00021716,2]
[312112898,1705639831667,-200.0,0.00021717,2]
[312112899,1705639831676,-428.39289982,0.00021717,2]
[312112900,1705639831687,-71.60710018,0.00021717,2]
[312112901,1705639831697,-200.0,0.00021717,2]
[312112902,1705639831706,-200.0,0.00021717,2]
[312112903,1705639831718,-200.0,0.00021717,2]
[312112904,1705639831730,-200.0,0.00021717,2]
[312112905,1705639831739,-137.59829707,0.00021721,2]
[312112906,1705639831757,-362.40170293,0.00021721,2]
[312112907,1705639831767,-1377.832,0.00021735,2]
[312112908,1705639831777,-25.61680897,0.00021735,2]
[312112909,1705639831789,-146.25769103,0.00021735,2]
[312112910,1705639831798,-677.53114584,0.00021735,2]
[312112911,1705639831810,-1033.7,0.00021735,2]
[312112912,1705639832448,221.7768806,0.00021181,2]
[312112913,1705639832970,-630.69098173,0.00021735,2]
[312112914,1705639832982,-1878.99551353,0.00021735,2]
[312112915,1705639832994,-619.18941253,0.00021735,2]
[312112918,1705639833418,560.56555998,0.00019393,2]
[312112921,1705639837579,-1378.25040696,0.00021735,2]
[312112922,1705639837635,-10735.98693941,0.00021735,2]
[312112923,1705639837644,-159.68066397,0.00021776,2]
[312112924,1705639837653,-859.3501,0.00021788,2]
[312112925,1705639837662,-1468.2766013,0.0002179,2]
[312112926,1705639837671,-173.73324866,0.0002179,2]
[312112927,1705639837680,-335.69187373,0.0002179,2]
[312112928,1705639837690,-272.17087923,0.00021791,2]
[312112929,1705639837699,-49660.2801,0.00021792,2]
[312112930,1705639837708,-601.86021936,0.00021792,2]
[312112931,1705639837719,-366.38,0.00021799,2]
[312112932,1705639837728,-289.1864,0.00021818,2]
[312112933,1705639837739,-203.0,0.00021821,2]
[312112934,1705639837748,-526.78460197,0.00021823,2]
[312112935,1705639837758,-2025.03257086,0.00021823,2]
[312112936,1705639837769,-3352.96534011,0.00021824,2]
[312112937,1705639837778,-242.15424343,0.00021835,3]
[312112938,1705639837788,-1378.405,0.00021835,2]
[312112939,1705639837797,-2438.942,0.00021835,2]
[312112940,1705639837806,-386.0,0.00021835,2]
[312112941,1705639837816,-946.0,0.00021835,2]
[312112942,1705639837829,-3041.0,0.00021835,2]
[312112943,1705639837838,-1933.358,0.00021835,2]
[312112944,1705639837848,-843.0,0.00021835,2]
[312112945,1705639837857,-702.0,0.00021835,2]
[312112946,1705639837866,-1234.0,0.00021835,2]
[312112947,1705639837876,-216.68,0.00021835,2]
[312112948,1705639837885,-1250.0,0.00021835,2]
[312112949,1705639837895,-607.703,0.00021835,2]
[312112950,1705639837904,-437.797,0.00021835,2]
[312112952,1705639837914,-997.0,0.00021835,2]
[312112954,1705639837924,-1934.0,0.00021835,2]
[312112956,1705639837933,-1282.861,0.00021835,2]
[312112958,1705639837942,-874.038,0.00021835,2]
[312112960,1705639837952,-319.0,0.00021835,2]
[312112962,1705639837961,-599.027,0.00021835,2]
[312112964,1705639837971,-235.0,0.00021835,2]
[312112966,1705639837981,-150.154,0.00021835,2]
[312112969,1705639837990,-250.0,0.00021835,2]
[312112971,1705639838000,-1454.966,0.00021835,2]
[312112972,1705639838009,-19709.0,0.00021835,2]
[312112975,1705639838019,-18104.75029318,0.00021835,2]
[312112977,1705639838032,-11367.19932748,0.00021835,2]
[312112981,1705639838065,365.73107739,0.00017432,2]
[312112984,1705639838078,-12767.05037934,0.00021835,2]
[312112986,1705639838087,-1687.21226384,0.00021835,2]
[312113036,1705639840199,-495.96990493,0.00021835,2]
[312113037,1705639840210,-95.49183123,0.00021835,2]
[312113038,1705639840219,-206.43078076,0.00021835,2]
[312113050,1705639843598,2189.00617389,0.00020969,2]
[312113051,1705639844120,888.56524416,0.00021181,2]
[312113052,1705639844759,534.46730827,0.00021181,2]
[312113055,1705639846109,403.829593,0.00020546,2]
[312113056,1705639846241,155.46350389,0.00021181,2]
[312113057,1705639846927,155.45812371,0.00021181,2]
[312113058,1705639852679,6083.71250564,0.00021181,2]
[312113059,1705639856453,155.21779584,0.00021181,2]
[312113060,1705639857962,260.47427742,0.00021181,2]
[312113061,1705639859409,564.02838509,0.00019482,2]
[312113062,1705639860108,598.21039419,0.00021181,2]
[312113063,1705639860533,1026.826291,0.00021181,2]
[312113064,1705639860691,1037.28275062,0.00021181,2]
[312113065,1705639861539,2179.0042789,0.00020969,2]
[312113066,1705639862729,237.38179516,0.00021181,2]
[312113067,1705639862909,155.0,0.00021181,2]
[312113068,1705639863815,157.35792446,0.00021181,2]
[312113069,1705639864102,406.02131958,0.00020546,2]
[312113070,1705639864397,155.0,0.00021181,2]
[312113071,1705639872457,157.69634178,0.00021181,2]
[312113072,1705639872677,6083.71250564,0.00021181,2]
[312113073,1705639873965,220.02136433,0.00021181,2]
[312113074,1705639877542,2179.0042789,0.00020969,2]
[312113075,1705639880115,159.0019928,0.00021181,2]
[312113076,1705639882239,155.0,0.00021181,2]
[312113077,1705639882525,676.57525425,0.00021181,2]
[312113078,1705639882683,159.08276391,0.00021181,2]
[312113079,1705639884907,157.85425292,0.00021181,2]
[312113080,1705639885798,156.77355716,0.00021181,2]
[312113081,1705639891926,155.43484962,0.0002,2]
[312113082,1705639895545,2179.0042789,0.00020969,2]
[312113083,1705639898244,273.41762448,0.00021181,2]
[312113084,1705639898684,6083.71250564,0.00021181,2]
[312113085,1705639901794,156.77355716,0.00021181,2]
[312113086,1705639909912,157.80078831,0.0002,2]
[312113088,1705639917544,1713.67575256,0.00020969,2]
[312113089,1705639918165,295.31,0.0003,120]
[312113091,1705639922175,156.77355716,0.00021181,2]
[312113092,1705639931055,618.63873576,0.00021181,2]
[312113093,1705639932727,1104.48137183,0.00021181,2]
[312113094,1705639935221,5262.67295912,0.00021181,2]
[312113095,1705639936894,295.08080635,0.00021181,2]
[312113096,1705639937087,287.07729549,0.00021181,2]
[312113097,1705639937241,861.00867359,0.00021181,2]
[312113098,1705639938794,155.0,0.00021181,2]
[312113099,1705639941880,285.43075314,0.00021181,2]
[312113100,1705639956425,276.193084,0.00021519,2]
[312113101,1705639967012,2000.0,0.00020872,2]
[312113102,1705640004312,156.83055682,0.00020872,2]
[312113103,1705640011795,151.40119,0.00021599,3]
[312113104,1705640012598,151.40119,0.00021599,3]
[312113105,1705640013223,151.40119,0.00021599,3]
[312113106,1705640013744,151.40119,0.00021599,3]
[312113107,1705640014478,151.40119,0.00021599,3]
[312113108,1705640014681,151.40119,0.00021599,3]
[312113109,1705640015448,151.40119,0.00021599,3]
[312113110,1705640015764,151.40119,0.00021599,3]
[312113111,1705640016384,151.40119,0.00021599,3]
[312113112,1705640016907,151.40119,0.00021599,3]
[312113113,1705640017916,151.40119,0.00021599,3]
[312113114,1705640018478,195.60330664,0.00020872,2]
[312113121,1705640070696,151.40119,0.00021599,3]
[312113122,1705640071455,151.40119,0.00021599,3]
[312113123,1705640072069,151.40119,0.00021599,3]
[312113124,1705640072658,151.40119,0.00021599,3]
[312113125,1705640073253,151.40119,0.00021599,3]
[312113126,1705640073843,151.40119,0.00021599,3]
[312113127,1705640074417,151.40119,0.00021599,3]
[312113128,1705640075092,151.40119,0.00021599,3]
[312113129,1705640075736,151.40119,0.00021599,3]
[312113130,1705640076322,151.40119,0.00021599,3]
[312113131,1705640076909,151.40119,0.00021599,3]
[312113134,1705640106472,340.55,0.0002086,2]
[312113135,1705640116266,500.0,0.0002085,2]
[312113136,1705640129429,554.87,0.00020855,2]
[312113137,1705640164254,201.0,0.00021217,2]
[312113138,1705640179952,160.32,0.0002085,2]
[312113139,1705640193858,205.0,0.00021217,2]
[312113140,1705640196112,156.51,0.00021059,2]
[312113141,1705640196544,1020.98,0.0002085,2]
[312113142,1705640202586,1852.42,0.0002085,2]
[312113143,1705640222329,543.41,0.00020838,2]
[312113144,1705640228010,159.13,0.00020987,2]
[312113145,1705640265849,6284.48,0.00020838,2]
[312113146,1705640276176,188.9,0.0002083,2]
[312113147,1705640295020,299.29,0.00020829,2]
[312113148,1705640299095,189.13,0.00018918,2]
[312113149,1705640299466,189.13,0.00021182,2]
[312113150,1705640308479,750.0,0.00020836,2]
[312113151,1705640313974,151.48,0.00016663,2]
[312113152,1705640320153,200.0,0.00020836,2]
[312113153,1705640328916,178.67,0.00020836,2]
[312113154,1705640358054,229.31,0.00020836,2]
[312113156,1705640374164,164.49,0.00020829,2]
[312113157,1705640385364,250.0,0.00020836,2]
[312113158,1705640386514,200.0,0.00020836,2]
[312113159,1705640400831,165.3,0.00020836,2]
[312113160,1705640406755,272.37,0.000213,2]
[312113161,1705640410969,2218.52,0.00020836,2]
[312113162,1705640435954,2705.0,0.00020829,2]
[312113163,1705640458280,159.68066397,0.00021526,2]
[312113164,1705640478814,226.76,0.00020827,2]
[312113165,1705640491530,2000.0,0.00020825,2]
[312113166,1705640494238,150.0,0.00020823,2]
[312113167,1705640546483,897.17,0.00020825,2]
[312113168,1705640598314,339.33,0.00020834,2]
[312113169,1705640617190,157.93,0.00021041,2]
[312113170,1705640619912,23900.0,0.00020833,2]
[312113171,1705640675216,556.1,0.00020829,2]
[312113172,1705640681201,160.99,0.00020994,2]
[312113173,1705640733192,188.9,0.00020832,2]
[312113174,1705640743595,186.85,0.00018914,2]
[312113175,1705640743904,186.85,0.00021178,2]
[312113176,1705640752342,231.87,0.00020832,2]
[312113177,1705640764441,155.49,0.00020832,2]
[312113178,1705640764689,155.49,0.00021073,2]
[312113179,1705640764881,155.49,0.00021313,2]
[312113180,1705640765095,155.49,0.00021554,2]
[312113181,1705640835463,200.0,0.0002083,2]
[312113182,1705640845423,176.33,0.00021068,2]
[312113185,1705640854231,250.0,0.00020838,2]
[312113186,1705640861212,150.83,0.00016659,2]
[312113249,1705640994197,156.62,0.00020813,2]
[312113270,1705641037743,-155.0,0.00021602,2]
[312113271,1705641037752,-269.88308538,0.00021602,2]
[312113272,1705641037764,-609.47680672,0.00021602,2]
[312113273,1705641037970,-191.64742986,0.00021602,2]
[312113274,1705641037979,-4627.51656199,0.00021603,2]
[312113275,1705641037989,-300.0,0.00021604,2]
[312113276,1705641037998,-176.33,0.00021616,2]
[312113277,1705641038007,-216.00228468,0.00021619,2]
[312113278,1705641038029,-1283.99771532,0.00021619,2]
[312113279,1705641038038,-1645.77776605,0.00021626,2]
[312113280,1705641038050,-8188.06852661,0.00021626,2]
[312113281,1705641038060,-2275.73972426,0.00021627,2]
[312113282,1705641038069,-150.0,0.00021628,2]
[312113283,1705641038079,-547.82803508,0.00021634,2]
[312113377,1705641040816,-865.44923091,0.00021634,2]
[312113378,1705641040827,-86.72273401,0.00021634,2]
[312113379,1705641040838,-201.0,0.00021641,2]
[312113380,1705641040848,-35.15379864,0.00021641,2]
[312113381,1705641040862,-168.84620136,0.00021641,2]
[312113382,1705641040871,-111.84780051,0.00021644,2]
[312113383,1705641040907,-70.73219949,0.00021644,2]
[312113384,1705641040918,-266.71624768,0.000217,2]
[312113385,1705641040928,-1756.318,0.00021735,2]
[312113386,1705641040937,-1344.31779413,0.00021753,3]
[312113387,1705641040947,-300.0,0.00021753,2]
[312113388,1705641040958,-159.68066397,0.00021755,2]
[312113389,1705641040966,-191.5384,0.00021792,2]
[312113390,1705641040975,-155.49,0.00021794,2]
[312113391,1705641040984,-150.0,0.00021794,2]
[312113392,1705641040994,-380.31447592,0.00021798,2]
[312113393,1705641041004,-277.998,0.00021799,2]
[312113394,1705641041014,-1358.0,0.00021799,2]
[312113395,1705641041024,-946.0,0.00021799,2]
[312113396,1705641041033,-654.46070849,0.00021799,2]
[312113397,1705641041053,-181.53929151,0.00021799,2]
[312113398,1705641041063,-109.68188374,0.00021799,2]
[312113400,1705641041074,-1149.24245364,0.00021799,2]
[312113411,1705641042756,-595.07566262,0.00021799,2]
[312113412,1705641042765,-808.348,0.00021799,2]
[312113413,1705641042775,-448.7,0.00021799,2]
[312113414,1705641042784,-1234.0,0.00021799,2]
[312113415,1705641042793,-214.0,0.00021799,2]
[312113416,1705641042802,-1250.0,0.00021799,2]
[312113417,1705641042812,-9521.8187,0.000218,2]
[312113418,1705641042821,-5159.171,0.000218,2]
[312113419,1705641042831,-393.72397,0.000218,2]
[312113420,1705641042842,-339.33,0.00021812,2]
[312113421,1705641042852,-1811.66942612,0.00021821,2]
[312113423,1705641043141,-122.33057388,0.00021821,2]
[312113424,1705641043150,-426.0,0.00021821,2]
[312113425,1705641043159,-189.97154445,0.00021821,2]
[312113426,1705641043171,-807.02845555,0.00021821,2]
[312113427,1705641043180,-873.0,0.00021821,2]
[312113428,1705641043191,-1138.0,0.00021821,2]
[312113429,1705641043201,-508.0,0.00021821,2]
[312113430,1705641043211,-235.0,0.00021821,2]
[312113431,1705641043222,-132.62944251,0.00021821,2]
[312113432,1705641043277,-186.37055749,0.00021821,2]
[312113433,1705641043287,-7387.03800969,0.00021824,2]
[312113434,1705641043298,-11588.50699031,0.00021824,2]
[312113435,1705641043307,-5613.732,0.00021824,2]
[312113436,1705641043317,-2906.0,0.00021824,2]
[312113437,1705641043326,-2274.0,0.00021824,2]
[312113438,1705641043336,-19709.0,0.00021824,2]
[312113439,1705641043345,-7553.997,0.00021824,2]
[312113440,1705641043353,-4176.0,0.00021824,2]
[312113441,1705641043363,-1030.0,0.00021824,2]
[312113442,1705641043372,-196.929,0.00021824,2]
[312113443,1705641043381,-150.0,0.00021825,2]
[312113444,1705641043391,-152.25714804,0.00021829,2]
[312113445,1705641043401,-201.81865526,0.00021833,2]
[312113446,1705641043410,-375.37803663,0.00021833,2]
[312113447,1705641043419,-155.22272396,0.00021833,2]
[312113448,1705641043429,-3125.09709947,0.00021834,2]
[312113449,1705641043438,-197.0,0.00021835,2]
[312113450,1705641043447,-157.266,0.00021835,2]
[312113451,1705641043455,-209.566,0.00021835,2]
[312113452,1705641043464,-236.932,0.00021835,2]
[312113453,1705641043474,-218.317,0.00021835,2]
[312113454,1705641043483,-176.0,0.00021835,2]
[312113455,1705641043492,-180.424,0.00021835,2]
[312113456,1705641043501,-203.321,0.00021835,2]
[312113457,1705641043509,-150.0,0.00021836,2]
[312113458,1705641043517,-314.25930124,0.00021868,2]
[312113459,1705641043526,-1500.0,0.00021885,2]
[312113460,1705641043536,-2409.51954581,0.00021888,3]
[312113461,1705641043547,-395.57673,0.00021888,3]
[312113462,1705641043574,-464.95688779,0.00021888,3]
[312113463,1705641043583,-8113.6618333,0.00021888,2]
[312113464,1705641043593,-7808.0816666,0.00021888,2]
[312113465,1705641043602,-2420.0420029,0.00021888,2]
[312113466,1705641043612,-1295.2117723,0.00021888,2]
[312113467,1705641043621,-5977.8495,0.00021888,2]
[312113468,1705641043630,-258.61319956,0.0002189,2]
[312113469,1705641043639,-5440.4877654,0.0002189,2]
[312113470,1705641043649,-703.61298315,0.0002189,2]
[312113471,1705641043658,-2286.39854772,0.0002189,2]
[312113472,1705641043667,-3323.92603214,0.0002189,2]
[312113473,1705641043677,-263.09880509,0.0002189,2]
[312113474,1705641043686,-3659.77229213,0.0002189,2]
[312113475,1705641043696,-3484.71152194,0.0002189,2]
[312113476,1705641043705,-247.58780902,0.0002189,2]
[312113477,1705641043715,-271.81271011,0.0002189,2]
[312113478,1705641043724,-173.11317304,0.0002189,2]
[312113479,1705641043734,-2021.30841625,0.00021891,2]
[312113480,1705641043744,-500.0,0.00021891,2]
[312113481,1705641043754,-105269.93740337,0.00021892,2]
[312113482,1705641043763,-3246.8304566,0.00021892,2]
[312113483,1705641043773,-2320.20559641,0.00021892,2]
[312113484,1705641043782,-343.0,0.000219,2]
[312113485,1705641043792,-784.5954,0.000219,2]
[312113486,1705641043802,-575.49,0.000219,2]
[312113487,1705641043811,-1000.0,0.000219,2]
[312113488,1705641043821,-2451.4063,0.000219,2]
[312113489,1705641043830,-5991.8985,0.00021902,2]
[312113490,1705641043840,-345.73203912,0.00021917,5]
[312113491,1705641043849,-200.0,0.00021918,2]
[312113492,1705641043859,-200.0,0.00021918,2]
[312113493,1705641043867,-800.0,0.00021918,2]
[312113494,1705641043877,-800.0,0.00021918,2]
[312113495,1705641043886,-800.0,0.00021918,2]
[312113496,1705641043895,-151.0,0.00021918,2]
[312113497,1705641043906,-151.0,0.00021918,2]